bitfinex/quotes_ETHUSD_20250508
["timestamp","ask_amount","ask_price","bid_price","bid_amount"]
[1746670032611,5.46539035,1829.7,1829.5,0.53360406]
[1746670032812,5.46524723,1829.8,1829.5,0.53360406]
[1746670032973,5.46494955,1829.9,1829.5,0.58825838]
[1746670033184,5.46494955,1829.9,1829.5,0.53360406]
[1746670033385,2.63528559,1830.1,1829.5,1.04373677]
[1746670033386,5.46509338,1829.8,1829.5,1.04373677]
[1746670033787,5.46490491,1829.9,1829.5,0.51013271]
[1746670033788,5.46567555,1829.6,1829.5,0.51013271]
[1746670033987,5.4659743,1829.5,1829.4,4.58134058]
[1746670034384,5.4659743,1829.5,1829.4,3.67620722]
[1746670036032,5.46586154,1829.6,1829.4,3.67620722]
[1746670036233,5.46612091,1829.5,1829.2,0.7952]
[1746670036436,10.93234878,1829.5,1829.2,1.35999353]
[1746670036604,5.46640104,1829.4,1829.2,1.30533271]
[1746670036803,5.46612091,1829.5,1829.2,1.30533271]
[1746670037000,5.46587026,1829.6,1829.2,0.7952]
[1746670037334,5.46587026,1829.6,1829.3,0.05466077]
[1746670037645,5.722,1829.7,1829.3,5.46644945]
[1746670037819,5.722,1829.7,1829.4,0.54664494]
[1746670037998,11.18748647,1829.7,1829.3,7.82077012]
[1746670038200,5.46439053,1830.1,1829.6,6.29049847]
[1746670038201,5.46436668,1830.1,1829.6,6.29049847]
[1746670038405,5.46442541,1830.1,1829.6,6.29049847]
[1746670038742,5.46450736,1830.0,1829.7,0.51013271]
[1746670038937,5.46479697,1829.9,1829.7,0.51013271]
[1746670039307,5.46479697,1829.9,1829.6,1.33513271]
[1746670039532,10.92981904,1829.9,1829.6,2.01522794]
[1746670039736,5.4650975,1829.8,1829.6,2.01522794]
[1746670040038,5.4650975,1829.8,1829.6,0.825]
[1746670040598,5.46496981,1829.9,1829.6,0.825]
[1746670040954,5.46421402,1830.1,1829.5,0.51004217]
[1746670041254,5.46558916,1829.7,1829.4,4.94754939]
[1746670041454,5.46567833,1829.6,1829.4,4.94754939]
[1746670041623,10.93057841,1829.8,1829.4,4.93226216]
[1746670041948,5.4659743,1829.5,1829.4,3.67620722]
[1746670043049,11.82328953,1829.6,1829.2,3.67620722]
[1746670043050,5.46654917,1829.4,1829.2,3.67620722]
[1746670043449,5.46610716,1829.5,1829.2,3.67620722]
[1746670043655,5.46640712,1829.4,1829.2,3.67620722]
[1746670044671,5.46657191,1829.3,1829.2,3.67620722]
[1746670044963,5.46657191,1829.3,1829.1,0.51024221]
[1746670045254,5.46644851,1829.4,1829.1,1.31051715]
[1746670046158,10.93298548,1829.4,1829.1,1.31051715]
[1746670046363,5.46644851,1829.4,1829.1,1.31051715]
[1746670046662,5.46657194,1829.3,1829.1,1.31051715]
[1746670047068,5.46644075,1829.4,1829.1,1.31051715]
[1746670047464,5.46657659,1829.3,1829.1,1.31051715]
[1746670047962,5.46657659,1829.3,1829.1,0.80027494]
[1746670049059,5.46627309,1829.4,1829.0,0.51024221]
[1746670049234,5.4670249,1829.2,1829.0,0.51024221]
[1746670049433,5.4670249,1829.2,1828.9,4.18644943]
[1746670049656,5.46728115,1829.1,1828.9,4.18644943]
[1746670049865,5.46746856,1829.0,1828.9,4.18644943]
[1746670050063,5.46746856,1829.0,1828.9,3.67620722]
[1746670055046,5.46785278,1828.9,1828.5,5.46882207]
[1746670055277,5.46806932,1828.8,1828.4,9.28527279]
[1746670055460,5.46806932,1828.8,1828.4,9.33995747]
[1746670055872,5.46785278,1828.9,1828.5,6.40292702]
[1746670056073,5.46866455,1828.6,1828.5,0.93399575]
[1746670056269,5.46908542,1828.5,1828.3,3.67620722]
[1746670056469,5.46926274,1828.4,1828.3,3.67620722]
[1746670056670,5.46901946,1828.5,1828.3,3.67620722]
[1746670057184,5.46926274,1828.4,1828.3,3.67620722]
[1746670057749,5.46914039,1828.5,1828.3,3.67620722]
[1746670058387,10.93835752,1828.5,1828.3,3.67620722]
[1746670058693,5.46914039,1828.5,1828.3,3.67620722]
[1746670059294,5.46914039,1828.5,1828.3,4.12222794]
[1746670059451,11.04756359,1828.7,1828.3,4.12222794]
[1746670059658,11.04756359,1828.7,1828.3,9.59177648]
[1746670059881,5.46867646,1828.6,1828.3,9.59177648]
[1746670060088,5.46867646,1828.6,1828.3,4.12222794]
[1746670060878,5.46867646,1828.6,1828.3,0.44602072]
[1746670061653,11.04756359,1828.7,1828.3,5.91553198]
[1746670061853,5.579,1828.7,1828.5,0.8329]
[1746670062375,5.722,1828.9,1828.7,5.46836349]
[1746670062578,5.4670487,1829.2,1828.8,6.22229925]
[1746670062777,5.4670487,1829.2,1828.8,6.27697334]
[1746670063352,5.4670487,1829.2,1828.8,0.7543]
[1746670063671,5.4675483,1829.0,1828.7,0.7543]
[1746670065296,0.7793,1829.1,1828.7,0.7543]
[1746670065594,5.46746856,1829.0,1828.3,4.93992794]
[1746670065815,5.46851297,1828.7,1828.3,10.91911021]
[1746670066305,5.46851297,1828.7,1828.3,10.40948807]
[1746670066480,5.46851297,1828.7,1828.4,1.04094881]
[1746670070513,5.46851297,1828.7,1828.4,6.51020377]
[1746670070713,6.25626615,1828.8,1828.4,6.51019308]
[1746670071215,5.4691849,1828.5,1828.2,3.0]
[1746670071710,5.4691849,1828.5,1828.2,3.51047848]
[1746670073419,5.46953178,1828.4,1828.2,0.51047848]
[1746670073621,6.23525472,1828.5,1828.2,0.51047848]
[1746670073795,6.23525472,1828.5,1828.2,3.0]
[1746670073998,11.70446102,1828.5,1828.2,3.0]
[1746670074195,6.23525472,1828.5,1828.2,3.0]
[1746670074431,6.23525472,1828.5,1828.2,3.51047848]
[1746670074588,5.46949155,1828.4,1828.2,0.51047848]
[1746670075021,5.46949155,1828.4,1828.1,0.792]
[1746670075222,0.7661,1828.5,1828.1,1.30247848]
[1746670075433,6.2352491,1828.5,1828.1,6.77262285]
[1746670075795,6.2352491,1828.5,1828.1,6.26214437]
[1746670076731,5.46999432,1828.2,1827.9,3.8116]
[1746670077034,5.47027847,1828.1,1827.9,0.8116]
[1746670077336,5.47027847,1828.1,1827.9,0.51101059]
[1746670078456,5.47045951,1828.0,1827.9,0.51101059]
[1746670079055,5.47045951,1828.0,1827.8,0.51101059]
[1746670079925,5.4697301,1828.3,1827.9,0.7929]
[1746670080151,11.19136968,1828.4,1828.0,5.47032354]
[1746670080665,5.722,1828.4,1828.1,10.94007134]
[1746670080877,5.722,1828.4,1828.2,0.7929]
[1746670081278,11.04898684,1828.5,1828.2,0.7929]
[1746670081485,5.58,1828.5,1828.2,0.7929]
[1746670081668,11.19085816,1828.6,1828.2,7.44144523]
[1746670081987,11.19085816,1828.6,1828.2,7.44128618]
[1746670082282,11.19085816,1828.6,1828.2,6.26253839]
[1746670082983,5.722,1828.6,1828.3,5.46947452]
[1746670083179,5.722,1828.6,1828.4,6.23690112]
[1746670083353,5.722,1828.6,1828.4,11.70605973]
[1746670083983,5.722,1828.6,1828.5,0.51100339]
[1746670084165,5.722,1828.6,1828.5,1.7327097]
[1746670084693,11.18964571,1829.0,1828.6,5.46854277]
[1746670084984,37.04598186,1829.1,1828.6,6.23613331]
[1746670085144,37.04598288,1829.1,1828.6,6.23613331]
[1746670085345,37.04598288,1829.1,1828.7,0.51100339]
[1746670085578,31.57853585,1829.1,1828.7,0.51100339]
[1746670085741,10.93542523,1829.0,1828.7,0.51100339]
[1746670085946,26.1112,1829.1,1828.6,0.7677]
[1746670086149,5.46851081,1828.7,1828.3,6.28403194]
[1746670086471,5.46825615,1828.8,1828.5,0.51100425]
[1746670088851,5.46794103,1828.9,1828.6,0.833]
[1746670089300,5.46794103,1828.9,1828.6,1.34400425]
[1746670090557,5.46756487,1829.0,1828.6,1.39869109]
[1746670090757,5.46756487,1829.0,1828.6,6.81242713]
[1746670090995,5.46756487,1829.0,1828.6,7.58423256]
[1746670091396,31.57850724,1829.1,1828.6,7.58423256]
[1746670091721,31.57850724,1829.1,1828.8,6.30105055]
[1746670091722,5.579,1829.1,1828.8,6.30105055]
[1746670092219,11.04618636,1829.1,1828.8,0.833]
[1746670092389,6.25896649,1828.8,1828.7,0.51095435]
[1746670092595,6.26002245,1828.5,1828.3,3.67620722]
[1746670092795,5.46909336,1828.5,1828.3,3.67620722]
[1746670093319,5.46909336,1828.5,1828.2,0.511046]
[1746670095521,11.04685796,1828.6,1828.2,0.511046]
[1746670095684,11.04685796,1828.6,1828.2,6.66720194]
[1746670095879,16.51579915,1828.6,1828.2,6.66720194]
[1746670096080,16.51579915,1828.6,1828.3,0.511046]
[1746670096394,5.46926274,1828.4,1828.3,0.511046]
[1746670096579,5.46926274,1828.4,1828.1,0.8273]
[1746670096781,5.46906903,1828.5,1828.1,7.29507105]
[1746670097002,5.46906903,1828.5,1828.1,10.97377894]
[1746670097210,5.46906903,1828.5,1828.2,0.51132871]
[1746670097714,11.04679685,1828.6,1828.2,5.46975727]
[1746670097903,5.578,1828.6,1828.4,0.8]
[1746670098106,5.722,1828.7,1828.4,1.93821371]
[1746670098282,5.722,1828.7,1828.4,1.3112741]
[1746670098484,11.04693431,1828.9,1828.5,5.46892472]
[1746670098728,16.76857311,1829.0,1828.6,5.46850766]
[1746670098886,5.46789491,1828.9,1828.7,0.8148]
[1746670099091,5.46806649,1828.8,1828.7,0.51120744]
[1746670099511,10.93643039,1828.8,1828.6,0.51120744]
[1746670099788,5.4683655,1828.7,1828.6,0.51120744]
[1746670100093,5.46818164,1828.8,1828.4,0.51120744]
[1746670100298,5.46793674,1828.9,1828.5,5.52364238]
[1746670100493,0.8112,1829.1,1828.7,5.46811974]
[1746670100494,5.46717404,1829.1,1828.7,5.46811974]
[1746670100734,19.706,1829.2,1828.9,0.8148]
[1746670100735,5.46705786,1829.2,1828.9,0.8148]
[1746670101198,5.46770297,1829.0,1828.7,0.8148]
[1746670101586,5.46781246,1828.9,1828.7,0.8148]
[1746670102420,5.46764611,1829.0,1828.7,0.8148]
[1746670102782,5.46764611,1829.0,1828.7,1.32576259]
[1746670102988,5.4673237,1829.1,1828.7,6.79407814]
[1746670103188,5.4673237,1829.1,1828.7,8.39367008]
[1746670103507,5.4673237,1829.1,1828.8,0.51096259]
[1746670103716,5.46758217,1829.0,1828.7,1.32576259]
[1746670103904,5.46779318,1828.9,1828.7,1.32576259]
[1746670104216,5.46786971,1828.9,1828.7,1.32576259]
[1746670104626,5.46786971,1828.9,1828.7,0.8148]
[1746670104807,5.46762831,1829.0,1828.7,0.8148]
[1746670105209,5.46733587,1829.1,1828.7,6.96243774]
[1746670105522,5.46699136,1829.2,1828.8,0.51096259]
[1746670105737,5.46699136,1829.2,1828.8,5.97902144]
[1746670106020,5.46699136,1829.2,1828.8,5.46805885]
[1746670106245,5.46699136,1829.2,1828.7,6.96244773]
[1746670106449,5.46721293,1829.1,1828.7,7.01712394]
[1746670106723,5.46721293,1829.1,1828.8,0.51066616]
[1746670107603,5.46748375,1829.0,1828.8,0.51066616]
[1746670108211,5.46748375,1829.0,1828.7,5.00417405]
[1746670108438,5.46748375,1829.0,1828.7,6.05144414]
[1746670108590,5.46748375,1829.0,1828.7,5.54077798]
[1746670109224,5.46748375,1829.0,1828.7,1.86207009]
[1746670109428,5.46800866,1828.9,1828.5,7.43570789]
[1746670109723,5.46866455,1828.6,1828.5,3.67870789]
[1746670110621,6.24743463,1828.7,1828.5,3.67870789]
[1746670110821,5.46863463,1828.7,1828.5,3.67870789]
[1746670110992,5.46866455,1828.6,1828.5,3.67870789]
[1746670111393,5.46863463,1828.7,1828.5,3.67870789]
[1746670111931,5.46819809,1828.8,1828.5,3.67870789]
[1746670112227,5.46819809,1828.8,1828.5,0.96593477]
[1746670112396,5.46794568,1828.9,1828.6,0.791]
[1746670112900,5.46795034,1828.9,1828.6,0.791]
[1746670113104,16.78637705,1829.1,1828.7,5.97976285]
[1746670113329,5.46767444,1829.0,1828.7,0.51140134]
[1746670113531,11.319,1829.1,1828.7,0.51140134]
[1746670113532,5.46806649,1828.8,1828.7,0.51140134]
[1746670113896,5.46806649,1828.8,1828.6,0.51140134]
[1746670114221,5.46806649,1828.8,1828.5,3.67870789]
[1746670114417,5.46806649,1828.8,1828.5,4.67806726]
[1746670114726,5.46866455,1828.6,1828.5,4.19018248]
[1746670115134,5.46855912,1828.7,1828.5,4.19018248]
[1746670115426,5.46855912,1828.7,1828.5,3.67870789]
[1746670115901,5.46855912,1828.7,1828.4,4.46970789]
[1746670116110,5.46855912,1828.7,1828.5,0.51146943]
[1746670116929,5.46855912,1828.7,1828.4,3.67870789]
[1746670117234,5.46884374,1828.6,1828.4,3.67870789]
[1746670117533,5.46896363,1828.5,1828.4,3.67870789]
[1746670117712,5.46896363,1828.5,1828.4,4.19016673]
[1746670117912,5.46896363,1828.5,1828.4,0.51145884]
[1746670119498,6.64182437,1828.5,1828.4,0.51145884]
[1746670120503,5.46945938,1828.4,1828.2,3.67870789]
[1746670120698,5.46956188,1828.3,1828.2,3.67870789]
[1746670121419,5.46928117,1828.4,1828.2,3.67870789]
[1746670122206,6.22716188,1828.3,1828.2,3.67870789]
[1746670122406,13.56700619,1828.3,1828.2,3.67870789]
[1746670122611,22.69853373,1828.3,1828.2,3.67870789]
[1746670122947,5.47045951,1828.0,1827.9,3.67870789]
[1746670123242,6.30295951,1828.0,1827.9,3.67870789]
[1746670125442,12.02495951,1828.0,1827.9,3.67870789]
[1746670125749,14.11543579,1828.0,1827.9,3.67870789]
[1746670126821,5.47164757,1827.7,1827.3,4.49700789]
[1746670127025,5.47164757,1827.7,1827.3,10.47946622]
[1746670127547,5.47164757,1827.7,1827.3,9.96955418]
[1746670129652,5.47164757,1827.7,1827.3,6.29084629]
[1746670129817,5.47164757,1827.7,1827.3,7.05011101]
[1746670130447,5.4712216,1827.8,1827.3,7.04990328]
[1746670130633,11.06897114,1827.9,1827.4,5.52677525]
[1746670130817,11.06897114,1827.9,1827.5,5.47194344]
[1746670131661,11.06897114,1827.9,1827.4,5.47206445]
[1746670131854,5.47111223,1827.8,1827.4,6.17702737]
[1746670132055,5.47111223,1827.8,1827.4,6.23174383]
[1746670132263,11.06893436,1827.9,1827.4,6.23169795]
[1746670132465,11.06893436,1827.9,1827.5,5.47193726]
[1746670133261,16.53994542,1827.9,1827.5,5.47193726]
[1746670133754,16.53997276,1827.9,1827.5,5.47193726]
[1746670134567,5.47106718,1827.8,1827.4,6.17702011]
[1746670134761,5.47138475,1827.7,1827.3,7.04997146]
[1746670135061,6.23068475,1827.7,1827.3,7.04997146]
[1746670135363,6.23068475,1827.7,1827.3,7.04989694]
[1746670135574,6.23068475,1827.7,1827.3,12.52222134]
[1746670135864,6.22776718,1827.8,1827.4,5.47224285]
[1746670137566,11.06891789,1827.9,1827.6,0.8018]
[1746670138768,5.47037535,1828.1,1827.7,5.47132411]
[1746670139467,5.47037535,1828.1,1827.6,6.27325327]
[1746670139769,5.4708865,1827.9,1827.6,0.8018]
[1746670140337,5.47032355,1828.1,1827.7,5.4712403]
[1746670140536,6.65181001,1828.1,1827.7,5.4712403]
[1746670140771,11.81502498,1828.2,1827.7,5.47112878]
[1746670140967,11.81502498,1828.2,1827.8,5.47100899]
[1746670141273,11.05902498,1828.2,1827.9,0.7609]
[1746670141857,5.47016816,1828.1,1827.9,0.7609]
[1746670142065,5.47016816,1828.1,1827.8,0.7609]
[1746670142572,5.47016816,1828.1,1827.7,5.47116342]
[1746670142573,5.47099312,1827.9,1827.6,0.7609]
[1746670142751,5.47099312,1827.9,1827.4,5.47201623]
[1746670142752,5.47130206,1827.8,1827.3,5.47228621]
[1746670142947,5.47130206,1827.8,1827.3,9.1509941]
[1746670143251,5.47139729,1827.7,1827.3,9.1509941]
[1746670143752,5.47126602,1827.8,1827.4,5.47223429]
[1746670144073,5.47141456,1827.7,1827.3,9.1509941]
[1746670144272,5.47122738,1827.8,1827.4,5.47213273]
[1746670144476,5.47122738,1827.8,1827.5,0.8006]
[1746670144872,0.8227,1828.0,1827.5,6.32710782]
[1746670145172,5.47059447,1828.0,1827.6,5.47148561]
[1746670145739,5.47032153,1828.1,1827.6,5.47165681]
[1746670145949,6.4172,1828.2,1827.8,0.8006]
[1746670145950,6.29807669,1828.2,1827.8,0.8006]
[1746670146155,11.05887669,1828.2,1827.8,6.27146753]
[1746670147086,5.47061235,1828.0,1827.8,0.8006]
[1746670147294,5.589,1828.2,1827.7,0.8136]
[1746670147295,5.47075879,1827.9,1827.7,0.8136]
[1746670147491,5.47075879,1827.9,1827.7,0.51129072]
[1746670147492,5.47115914,1827.8,1827.7,0.51129072]
[1746670148080,5.47136975,1827.7,1827.5,0.8136]
[1746670148592,5.47115914,1827.8,1827.5,1.32489072]
[1746670149257,10.94249547,1827.8,1827.5,0.8136]
[1746670149608,10.94246833,1827.8,1827.5,0.8136]
[1746670149776,5.47115914,1827.8,1827.5,0.8136]
[1746670150302,5.47101332,1827.9,1827.5,6.91411818]
[1746670150501,5.4707878,1827.9,1827.5,6.91392388]
[1746670150660,5.47062725,1828.0,1827.6,5.47165649]
[1746670150856,5.47062725,1828.0,1827.6,5.98362222]
[1746670151495,5.47076188,1827.9,1827.6,0.51196573]
[1746670151667,5.47076188,1827.9,1827.7,0.51196573]
[1746670152192,5.47033735,1828.1,1827.7,0.8288]
[1746670152353,11.05898664,1828.2,1827.8,5.47104534]
[1746670152557,5.47018273,1828.1,1827.7,6.29996391]
[1746670152758,5.47018273,1828.1,1827.8,0.51242831]
[1746670153536,5.47018273,1828.1,1827.9,0.51242831]
[1746670153819,11.05905947,1828.2,1827.9,0.51242831]
[1746670154023,11.05905947,1828.2,1827.7,7.47710991]
[1746670154321,5.47028187,1828.1,1827.8,0.74771099]
[1746670154620,11.05905947,1828.2,1827.8,1.2600401]
[1746670154924,16.52915987,1828.2,1827.9,0.51232911]
[1746670155098,11.05905947,1828.2,1827.9,0.51232911]
[1746670155301,5.589,1828.2,1827.9,5.47074374]
[1746670155495,5.4708599,1827.9,1827.7,0.8288]
[1746670155695,5.4708599,1827.9,1827.5,0.7697]
[1746670156002,5.4708599,1827.9,1827.8,0.51231073]
[1746670156202,6.27637773,1828.0,1827.5,0.7697]
[1746670156203,5.47135182,1827.8,1827.6,0.51231073]
[1746670156696,5.47135182,1827.8,1827.4,9.15074617]
[1746670156900,5.47135182,1827.8,1827.4,9.92044617]
[1746670157102,5.47135182,1827.8,1827.5,0.51237289]
[1746670157725,6.09851549,1827.9,1827.5,5.98420536]
[1746670157927,5.47087772,1827.9,1827.6,0.51237289]
[1746670158502,2.51566089,1828.2,1827.8,5.47076246]
[1746670158717,11.05986379,1828.2,1827.9,5.47066192]
[1746670158917,11.05986379,1828.2,1827.8,5.47087101]
[1746670159226,5.59,1828.2,1827.9,5.98305962]
[1746670159425,5.59,1828.2,1827.9,7.1284559]
[1746670159787,5.59,1828.2,1828.0,0.51237289]
[1746670160429,5.59,1828.2,1827.9,6.61608301]
[1746670161235,5.59,1828.2,1828.0,0.51204862]
[1746670161912,5.59,1828.2,1828.0,1.33534862]
[1746670162335,5.59,1828.2,1828.0,0.8233]
[1746670162834,5.59,1828.2,1828.0,6.29368899]
[1746670163134,5.59,1828.2,1828.1,0.6293689]
[1746670163328,5.59,1828.2,1828.0,6.29368899]
[1746670163530,5.59,1828.2,1828.1,5.47016027]
[1746670163699,15.709,1828.5,1828.2,5.46981205]
[1746670163906,21.17797436,1828.5,1828.2,5.46981205]
[1746670164317,15.709,1828.5,1828.2,5.46981205]
[1746670164513,21.17810361,1828.5,1828.1,5.47005944]
[1746670164918,21.17810361,1828.5,1828.1,5.46996939]
[1746670165114,21.17810361,1828.5,1828.1,6.64632907]
[1746670165321,21.17810361,1828.5,1828.2,0.5114853]
[1746670166206,5.46928982,1828.4,1828.2,0.5114853]
[1746670166407,5.46928982,1828.4,1828.1,0.5114853]
[1746670166934,5.46947385,1828.4,1828.1,0.5114853]
[1746670167240,21.17804216,1828.5,1828.1,12.49984811]
[1746670167441,21.17804216,1828.5,1828.2,5.46985839]
[1746670167641,15.709,1828.5,1828.2,5.46985839]
[1746670168651,15.709,1828.5,1828.2,5.46964512]
[1746670168945,5.589,1828.5,1828.3,6.2518274]
[1746670169145,5.589,1828.5,1828.3,7.42944407]
[1746670169442,5.589,1828.5,1828.3,1.95991667]
[1746670169644,5.589,1828.5,1828.2,5.46973405]
[1746670169813,5.589,1828.5,1828.2,6.25203405]
[1746670170440,5.589,1828.5,1828.2,6.25195925]
[1746670171023,6.4026,1828.5,1828.2,5.46965925]
[1746670172284,5.589,1828.5,1828.2,5.4696327]
[1746670172439,5.589,1828.5,1828.3,0.54696327]
[1746670173946,11.05804233,1828.5,1828.1,11.9883319]
[1746670174148,11.05804233,1828.5,1828.2,5.46983879]
[1746670174317,5.589,1828.5,1828.2,5.46983879]
[1746670174930,11.0580687,1828.5,1828.1,6.51832338]
[1746670175253,5.46993117,1828.2,1828.0,3.67870789]
[1746670175452,6.28336188,1828.3,1828.0,3.67870789]
[1746670175615,6.28336188,1828.3,1828.0,4.18965213]
[1746670175822,7.31462112,1828.2,1828.0,3.67870789]
[1746670176028,5.47047859,1828.0,1827.8,3.67870789]
[1746670176235,5.47016027,1828.1,1827.8,4.18971212]
[1746670176433,5.47016027,1828.1,1827.8,5.23403173]
[1746670177474,0.8136,1828.3,1827.8,5.23403173]
[1746670177684,16.3613642,1828.4,1828.0,6.23663177]
[1746670177974,10.12,1828.4,1828.2,5.4698162]
[1746670179678,10.12,1828.4,1828.2,5.46971805]
[1746670179984,10.12,1828.4,1828.3,0.8068]
[1746670181176,5.589,1828.5,1828.3,6.27635756]
[1746670181567,16.4635,1828.7,1828.3,1.98140756]
[1746670181878,5.46887478,1828.6,1828.2,5.46972198]
[1746670183155,5.46916607,1828.5,1828.1,6.24733666]
[1746670183355,5.4693606,1828.4,1828.2,0.51126445]
[1746670183679,5.46915662,1828.5,1828.2,0.51126445]
[1746670183884,6.56295541,1828.5,1828.2,0.51126445]
[1746670184245,5.46915662,1828.5,1828.2,0.51126445]
[1746670184786,5.46883128,1828.6,1828.2,5.98105776]
[1746670184956,5.46900579,1828.5,1828.2,0.51126445]
[1746670186573,5.46866455,1828.6,1828.1,0.7773]
[1746670186770,5.46926274,1828.4,1828.0,9.94916427]
[1746670186970,5.46926274,1828.4,1828.0,11.49113862]
[1746670187174,5.46926274,1828.4,1828.1,0.51150894]
[1746670187459,6.24038736,1828.5,1828.1,5.98153782]
[1746670187668,6.24038736,1828.5,1828.2,0.51150894]
[1746670188193,6.24038736,1828.5,1828.1,5.47002888]
[1746670189058,6.24038736,1828.5,1828.1,7.16612482]
[1746670189059,5.46908736,1828.5,1828.1,7.16612482]
[1746670189357,5.46908736,1828.5,1828.2,0.512196]
[1746670189760,5.46908736,1828.5,1828.1,7.16612482]
[1746670190487,11.04908736,1828.5,1828.1,7.16612482]
[1746670190694,11.04908736,1828.5,1828.1,12.63610544]
[1746670191085,11.04908736,1828.5,1828.2,0.51225195]
[1746670191871,11.04908736,1828.5,1828.3,0.51225195]
[1746670192502,11.04908736,1828.5,1828.1,7.16607656]
[1746670192799,11.04908736,1828.5,1828.2,0.51237472]
[1746670193499,5.58,1828.5,1828.3,0.51237472]
[1746670193802,11.04902109,1828.5,1828.3,0.51237472]
[1746670193994,11.04902109,1828.5,1828.1,7.16608033]
[1746670194196,11.04902109,1828.5,1828.2,0.71660803]
[1746670194372,11.04902109,1828.5,1828.1,7.16608033]
[1746670194574,11.04902109,1828.5,1828.2,0.51242648]
[1746670194773,5.46936219,1828.4,1828.2,0.51242648]
[1746670195007,16.51835594,1828.5,1828.2,0.51242648]
[1746670195171,5.46928288,1828.4,1828.2,0.51242648]
[1746670195371,5.46928288,1828.4,1828.3,0.51242648]
[1746670195581,7.8783265,1828.4,1828.3,0.51242648]
[1746670195878,11.04910544,1828.5,1828.1,5.47013775]
[1746670196190,11.04910544,1828.5,1828.2,0.51242599]
[1746670196603,11.04910544,1828.5,1828.3,0.51242599]
[1746670197102,11.04910544,1828.5,1828.1,5.47013775]
[1746670197602,11.04910544,1828.5,1828.2,0.51243671]
[1746670198105,11.04910544,1828.5,1828.3,0.51243671]
[1746670198601,11.04910544,1828.5,1828.1,5.47013775]
[1746670198797,11.04910544,1828.5,1828.1,7.01206612]
[1746670199000,11.04910544,1828.5,1828.2,0.51243516]
[1746670199202,5.46949977,1828.4,1828.2,0.51243516]
[1746670199376,5.46956188,1828.3,1828.0,4.47870789]
[1746670199584,7.424591,1828.5,1828.1,5.4701468]
[1746670199924,5.58,1828.5,1828.2,5.98231919]
[1746670200215,11.04898962,1828.5,1828.2,5.98231919]
[1746670200386,11.04898962,1828.5,1828.3,0.51247365]
[1746670200584,5.58,1828.5,1828.3,0.51247365]
[1746670200973,11.04897447,1828.5,1828.1,10.14356048]
[1746670201173,5.46927738,1828.4,1828.1,4.67359336]
[1746670201396,5.46927738,1828.4,1828.2,0.51246548]
[1746670201723,5.46927738,1828.4,1828.1,3.67870789]
[1746670202514,5.46946743,1828.4,1828.2,0.5124859]
[1746670203208,5.46946743,1828.4,1828.0,9.94915094]
[1746670203512,5.47005707,1828.2,1828.1,0.51250639]
[1746670203674,6.82907014,1828.2,1828.1,0.51250639]
[1746670203870,7.63487014,1828.2,1828.1,0.51250639]
[1746670204100,5.46968264,1828.3,1828.1,0.51250639]
[1746670204274,5.46968264,1828.3,1828.0,3.67870789]
[1746670205816,5.46968264,1828.3,1827.9,6.29462871]
[1746670205817,5.46986287,1828.2,1827.9,6.29462871]
[1746670206508,5.46986287,1828.2,1828.0,0.51250927]
[1746670206713,5.46986287,1828.2,1828.0,1.19322307]
[1746670206890,5.46986287,1828.2,1828.0,0.51250927]
[1746670207076,5.46986287,1828.2,1827.9,0.8241]
[1746670207277,5.46986287,1828.2,1827.9,4.50280789]
[1746670208012,5.46986287,1828.2,1828.0,0.51258052]
[1746670208378,5.46986287,1828.2,1827.9,4.50280789]
[1746670208689,5.46959019,1828.3,1828.0,0.45028079]
[1746670209092,5.46959019,1828.3,1828.1,0.51245854]
[1746670209432,5.58,1828.5,1828.1,0.51245854]
[1746670209713,11.0491021,1828.5,1828.2,0.7879]
[1746670209887,11.0491021,1828.5,1828.2,1.97740944]
[1746670210387,11.0491021,1828.5,1828.3,0.51245854]
[1746670210711,11.04918057,1828.5,1828.2,0.7879]
[1746670211724,11.04918057,1828.5,1828.3,0.51243445]
[1746670211901,16.41721367,1828.6,1828.2,0.7879]
[1746670211902,15.58877922,1828.6,1828.2,0.7879]
[1746670212093,11.04755068,1828.7,1828.3,5.46955648]
[1746670212284,5.46872588,1828.6,1828.4,0.51239083]
[1746670212480,11.04755068,1828.7,1828.4,0.51239083]
[1746670212903,11.04755068,1828.7,1828.5,0.51239083]
[1746670213230,11.04755068,1828.7,1828.5,1.29859083]
[1746670213527,11.04755068,1828.7,1828.5,0.7862]
[1746670218986,10.12,1828.8,1828.5,6.70710764]
[1746670219313,15.5880814,1828.8,1828.5,6.70710764]
[1746670220219,15.5880814,1828.8,1828.5,1.23815949]
[1746670221030,6.2962614,1828.7,1828.4,3.67870789]
[1746670221204,6.2962509,1828.7,1828.5,0.5115719]
[1746670221404,5.46866455,1828.6,1828.5,0.5115719]
[1746670221794,5.46896363,1828.5,1828.4,3.67870789]
[1746670224029,5.46896363,1828.5,1828.2,3.67870789]
[1746670224217,5.46896363,1828.5,1828.2,5.73036595]
[1746670224615,5.46866455,1828.6,1828.2,5.21875856]
[1746670224920,5.46900768,1828.5,1828.2,5.2734507]
[1746670225102,5.46866455,1828.6,1828.2,10.74326754]
[1746670225312,5.46866455,1828.6,1828.3,0.51157189]
[1746670225616,6.4057,1828.7,1828.3,1.63705583]
[1746670225816,10.12,1828.8,1828.5,5.46894962]
[1746670226218,15.58807339,1828.8,1828.5,5.46894962]
[1746670226398,15.58807339,1828.8,1828.5,5.52363347]
[1746670226597,15.58807339,1828.8,1828.5,5.46894962]
[1746670226796,15.58807339,1828.8,1828.4,6.28548016]
[1746670226999,15.58807339,1828.8,1828.5,0.62854802]
[1746670227230,5.46838667,1828.7,1828.4,0.7617]
[1746670227412,5.46838667,1828.7,1828.5,0.51144386]
[1746670228496,21.05658065,1828.8,1828.5,0.51144386]
[1746670228707,10.93658065,1828.8,1828.5,0.51144386]
[1746670228999,5.46823854,1828.8,1828.5,0.51144386]
[1746670229203,5.46823854,1828.8,1828.5,1.55902176]
[1746670229828,5.46823854,1828.8,1828.5,7.08266797]
[1746670230038,5.46823854,1828.8,1828.5,1.6137067]
[1746670230239,5.46823854,1828.8,1828.5,1.10226284]
[1746670231429,5.46823854,1828.8,1828.6,0.51130725]
[1746670231739,5.46794386,1828.9,1828.6,0.70346887]
[1746670232043,5.46794386,1828.9,1828.7,0.7987]
[1746670232412,5.46794386,1828.9,1828.8,0.1937406]
[1746670232928,11.964591,1829.0,1828.8,0.1937406]
[1746670232929,15.58757425,1829.0,1828.8,0.1937406]
[1746670234344,5.46776751,1828.9,1828.8,0.1937406]
[1746670234540,15.58764486,1829.0,1828.8,0.1937406]
[1746670234746,15.58764486,1829.0,1828.6,6.31819423]
[1746670234943,15.58764486,1829.0,1828.7,0.82547229]
[1746670236458,15.58767983,1829.0,1828.7,0.82547229]
[1746670236847,15.58753119,1829.0,1828.7,0.82547229]
[1746670237154,11.04531587,1829.1,1828.7,6.34839647]
[1746670237446,11.04531587,1829.1,1828.7,11.81654323]
[1746670237612,11.04531587,1829.1,1828.7,6.29361905]